fUSD/lending_fUSD_20250916
["ID","MTS","AMOUNT","RATE_DAILY","PERIOD"]
[385744430,1758001846275,-500.0,0.00023254,2]
[385744431,1758001846283,-500.0,0.00023254,2]
[385744432,1758001846293,-500.0,0.00023254,2]
[385744433,1758001846302,-500.0,0.00023254,2]
[385744434,1758001846312,-150.0,0.00023254,2]
[385744435,1758001846321,-607.33378466,0.00023254,2]
[385744436,1758001846330,-500.0,0.00023254,2]
[385744437,1758001846339,-150.0,0.00023254,2]
[385744438,1758001846351,-475.0,0.00023254,2]
[385744439,1758001846359,-150.0,0.00023254,2]
[385744440,1758001846369,-200.0,0.00023288,2]
[385744441,1758001846378,-500.0,0.00023343,2]
[385744442,1758001846387,-160.18513271,0.00023343,2]
[385744443,1758001846396,-633.22260576,0.00023343,2]
[385744444,1758001846405,-500.0,0.00023343,2]
[385744445,1758001846414,-213.1401216,0.00023358,2]
[385744446,1758001846424,-18530.3442476,0.00023413,2]
[385744447,1758001846433,-152.678697,0.00023454,7]
[385744448,1758001846443,-151.0,0.00023454,7]
[385744449,1758001846451,-155.623483,0.00023454,7]
[385744450,1758001846462,-200.0,0.00023479,2]
[385744451,1758001846471,-330.3462344,0.00023479,2]
[385744452,1758001846480,-500.0,0.00023528,2]
[385744454,1758001846490,-150.0,0.00023528,2]
[385744456,1758001846499,-205.24203672,0.00023528,2]
[385744457,1758001846508,-150.0,0.00023528,2]
[385744458,1758001846517,-1560.0,0.00023528,2]
[385744459,1758001846526,-500.0,0.00023528,2]
[385744460,1758001846535,-500.0,0.00023528,2]
[385744461,1758001846544,-500.0,0.00023528,2]
[385744462,1758001846554,-500.0,0.00023528,2]
[385744463,1758001846563,-150.0,0.00023528,2]
[385744464,1758001846572,-500.0,0.00023528,2]
[385744465,1758001846586,-150.0,0.00023528,2]
[385744466,1758001846595,-475.0,0.00023528,2]
[385744467,1758001846604,-200.0,0.00023528,2]
[385744468,1758001846613,-169.881451,0.00023528,7]
[385744469,1758001846622,-2000.0,0.00023616,2]
[385744470,1758001846631,-2000.0,0.00023616,2]
[385744471,1758001846640,-188.11,0.00023656,2]
[385744472,1758001846649,-226.75,0.00023726,2]
[385744473,1758001846658,-420.0,0.00023728,2]
[385744474,1758001846667,-600.0,0.00023754,2]
[385744475,1758001846676,-500.0,0.00023802,2]
[385744476,1758001846685,-150.0,0.00023802,2]
[385744477,1758001846694,-1560.0,0.00023802,2]
[385744478,1758001846703,-500.0,0.00023802,2]
[385744479,1758001846712,-500.0,0.00023802,2]
[385744480,1758001846721,-500.0,0.00023802,2]
[385744481,1758001846730,-500.0,0.00023802,2]
[385744482,1758001846739,-150.0,0.00023802,2]
[385744483,1758001846748,-500.0,0.00023802,2]
[385744484,1758001846757,-150.0,0.00023802,2]
[385744485,1758001846766,-475.0,0.00023802,2]
[385744486,1758001846775,-7025.33,0.00023835,2]
[385744487,1758001846784,-150.0,0.00023884,2]
[385744488,1758001846793,-150.0,0.00023884,2]
[385744489,1758001846803,-150.0,0.00023884,2]
[385744490,1758001846811,-500.0,0.00023884,2]
[385744491,1758001846821,-500.0,0.00023884,2]
[385744492,1758001846833,-500.0,0.00023884,2]
[385744493,1758001846842,-150.0,0.00023884,2]
[385744494,1758001846852,-500.0,0.00023884,2]
[385744495,1758001846862,-150.0,0.00023884,2]
[385744496,1758001846872,-150.0,0.00023884,2]
[385744497,1758001846881,-150.0,0.00023884,2]
[385744498,1758001846890,-150.0,0.00023884,2]
[385744499,1758001846899,-150.84104114,0.00023884,2]
[385744500,1758001846908,-150.0,0.00023884,2]
[385744501,1758001846918,-167.39,0.00023895,2]
[385744502,1758001846927,-20127.4555076,0.000239,2]
[385744503,1758001846937,-500.0,0.00023973,2]
[385744504,1758001846946,-500.0,0.00023973,2]
[385744505,1758001846955,-500.0,0.00023973,2]
[385744506,1758001846964,-500.0,0.00023973,2]
[385744507,1758001846973,-500.0,0.00023973,2]
[385744508,1758001846983,-500.0,0.00023973,2]
[385744509,1758001846992,-500.0,0.00023973,2]
[385744510,1758001847001,-1000.0,0.00023998,2]
[385744511,1758001847011,-115329.48337729,0.00023999,2]
[385744512,1758001847020,-435.05062452,0.00024,2]
[385744513,1758001847030,-297.54834,0.00024,2]
[385744514,1758001847039,-200.0,0.00024027,2]
[385744515,1758001847048,-500.0,0.00024076,2]
[385744516,1758001847057,-150.0,0.00024076,2]
[385744517,1758001847066,-1560.0,0.00024076,2]
[385744518,1758001847075,-500.0,0.00024076,2]
[385744519,1758001847084,-398.93038835,0.00024076,2]
[385744520,1758001847094,-500.0,0.00024076,2]
[385744521,1758001847103,-500.0,0.00024076,2]
[385744522,1758001847112,-150.99948376,0.00024076,2]
[385744523,1758001847121,-500.0,0.00024076,2]
[385744524,1758001847130,-165.41514138,0.00024076,2]
[385744525,1758001847139,-475.0,0.00024076,2]
[385744526,1758001847148,-150.0,0.00024158,2]
[385744527,1758001847158,-150.0,0.00024158,2]
[385744528,1758001847167,-150.0,0.00024158,2]
[385744529,1758001847176,-500.0,0.00024158,2]
[385744530,1758001847185,-500.0,0.00024158,2]
[385744531,1758001847194,-500.0,0.00024158,2]
[385744532,1758001847202,-150.0,0.00024158,2]
[385744533,1758001847211,-500.0,0.00024158,2]
[385744534,1758001847220,-155.54571628,0.00024158,2]
[385744535,1758001847229,-152.49040934,0.00024158,2]
[385744536,1758001847238,-150.0,0.00024158,2]
[385744537,1758001847247,-150.0,0.00024158,2]
[385744538,1758001847256,-150.0,0.00024158,2]
[385744539,1758001847265,-2500.0,0.00024164,2]
[385744540,1758001847274,-1069.9051796,0.00024164,2]
[385744541,1758001847283,-518.13,0.00024189,2]
[385744542,1758001847293,-400.0,0.00024247,2]
[385744543,1758001847303,-600.0,0.00024302,2]
[385744544,1758001847311,-188.11,0.00024332,2]
[385744545,1758001847322,-500.0,0.0002435,2]
[385744546,1758001847332,-151.78580943,0.0002435,2]
[385744547,1758001847342,-1560.0,0.0002435,2]
[385744548,1758001847352,-500.0,0.0002435,2]
[385744549,1758001847363,-504.56335663,0.0002435,2]
[385744550,1758001847372,-500.0,0.0002435,2]
[385744551,1758001847381,-500.0,0.0002435,2]
[385744552,1758001847390,-475.0,0.0002435,2]
[385744553,1758001847399,-150.0,0.00024432,2]
[385744554,1758001847408,-150.0,0.00024432,2]
[385744555,1758001847416,-151.71762275,0.00024432,2]
[385744556,1758001847426,-500.0,0.00024432,2]
[385744557,1758001847435,-500.0,0.00024432,2]
[385744558,1758001847443,-500.0,0.00024432,2]
[385744559,1758001847452,-150.0,0.00024432,2]
[385744560,1758001847461,-500.0,0.00024432,2]
[385744561,1758001847470,-150.0,0.00024432,2]
[385744562,1758001847479,-150.0,0.00024432,2]
[385744563,1758001847488,-150.0,0.00024432,2]
[385744564,1758001847497,-170.12323021,0.00024521,2]
[385744565,1758001847506,-1012.91564559,0.00024521,2]
[385744566,1758001847515,-1000.0,0.00024521,2]
[385744567,1758001847525,-859.8033905,0.00024521,2]
[385744568,1758001847534,-1000.0,0.00024521,2]
[385744569,1758001847543,-500.67607476,0.00024521,2]
[385744570,1758001847552,-592.41295052,0.00024521,2]
[385744571,1758001847561,-207.4,0.00024574,2]
[385744572,1758001847570,-200.0,0.00024575,2]
[385744573,1758001847585,-226.75,0.00024616,2]
[385744574,1758001847594,-500.0,0.00024624,2]
[385744575,1758001847603,-1560.0,0.00024624,2]
[385744576,1758001847612,-500.0,0.00024624,2]
[385744577,1758001847622,-500.0,0.00024624,2]
[385744578,1758001847631,-500.0,0.00024624,2]
[385744579,1758001847640,-475.0,0.00024624,2]
[385744580,1758001847651,-500.0,0.0002463,2]
[385744581,1758001847661,-1507.235858,0.00024636,2]
[385744582,1758001847670,-2159.9372683,0.00024643,2]
[385744583,1758001847679,-189.03,0.00024658,2]
[385744584,1758001847688,-151.0,0.00024658,7]
[385744585,1758001847698,-151.0,0.00024658,7]
[385744586,1758001847707,-164.853423,0.00024658,7]
[385744587,1758001847717,-151.0,0.00024658,7]
[385744588,1758001847726,-151.0,0.00024658,7]
[385744589,1758001847735,-151.0,0.00024658,7]
[385744590,1758001847744,-151.0,0.00024658,7]
[385744591,1758001847754,-151.0,0.00024658,7]
[385744592,1758001847763,-151.0,0.00024658,7]
[385744593,1758001847772,-231.414534,0.00024658,7]
[385744594,1758001847781,-151.0,0.00024658,7]
[385744595,1758001847790,-156.628207,0.00024658,7]
[385744596,1758001847799,-280.217887,0.00024658,7]
[385744597,1758001847808,-158.093884,0.00024658,7]
[385744598,1758001847817,-154.537752,0.00024658,7]
[385744599,1758001847826,-151.647225,0.00024658,7]
[385744600,1758001847835,-151.0,0.00024658,7]
[385744601,1758001847844,-151.0,0.00024658,7]
[385744602,1758001847853,-151.0,0.00024658,7]
[385744603,1758001847862,-151.0,0.00024658,7]
[385744604,1758001847871,-174.874511,0.00024658,7]
[385744605,1758001847880,-151.0,0.00024658,7]
[385744606,1758001847889,-151.0,0.00024658,7]
[385744607,1758001847897,-155.165263,0.00024658,7]
[385744608,1758001847907,-151.0,0.00024658,7]
[385744609,1758001847915,-151.0,0.00024658,7]
[385744610,1758001847924,-156.696962,0.00024658,7]
[385744611,1758001847933,-150.0,0.00024658,2]
[385744612,1758001847941,-151.0,0.000247,7]
[385744613,1758001847950,-151.0,0.000247,7]
[385744614,1758001847959,-258.338688,0.000247,7]
[385744615,1758001847968,-150.0,0.00024706,2]
[385744616,1758001847977,-150.0,0.00024706,2]
[385744617,1758001847986,-155.1626616,0.00024706,2]
[385744618,1758001847995,-262.91814632,0.00024706,2]
[385744619,1758001848003,-500.0,0.00024706,2]
[385744620,1758001848014,-150.0,0.00024706,2]
[385744621,1758001848023,-559.61462326,0.00024706,2]
[385744622,1758001848031,-150.0,0.00024706,2]
[385744623,1758001848040,-150.0,0.00024706,2]
[385744624,1758001848050,-150.0,0.00024706,2]
[385744625,1758001848059,-3000.0,0.00024712,2]
[385744626,1758001848068,-201.31257728,0.00024713,2]
[385744627,1758001848078,-151.0,0.0002472,7]
[385744628,1758001848087,-151.0,0.0002472,7]
[385744629,1758001848097,-151.0,0.0002472,7]
[385744630,1758001848106,-151.0,0.0002472,7]
[385744631,1758001848115,-158.117619,0.00024721,7]
[385744632,1758001848125,-151.0,0.00024721,7]
[385744633,1758001848133,-151.0,0.00024721,7]
[385744634,1758001848142,-500.0,0.00024773,2]
[385744635,1758001848151,-505.15081202,0.00024773,2]
[385744636,1758001848160,-500.0,0.00024773,2]
[385744637,1758001848169,-500.0,0.00024773,2]
[385744638,1758001848180,-159.88544444,0.00024773,2]
[385744639,1758001848189,-1000.0,0.00024799,2]
[385744640,1758001848199,-154.766756,0.00024799,7]
[385744641,1758001848207,-151.0,0.00024799,7]
[385744642,1758001848217,-151.0,0.00024799,7]
[385744643,1758001848226,-153.344379,0.000248,7]
[385744644,1758001848235,-248.085119,0.000248,7]
[385744645,1758001848244,-151.0,0.000248,7]
[385744646,1758001848253,-153.300226,0.000248,7]
[385744647,1758001848262,-151.0,0.000248,7]
[385744648,1758001848272,-154.043093,0.000248,7]
[385744649,1758001848282,-151.0,0.000248,7]
[385744650,1758001848291,-151.0,0.000248,7]
[385744651,1758001848303,-153.567665,0.000248,7]
[385744652,1758001848313,-388.104289,0.000248,7]
[385744653,1758001848323,-363.786409,0.000248,7]
[385744654,1758001848333,-363.786409,0.000248,7]
[385744655,1758001848343,-388.104289,0.000248,7]
[385744656,1758001848353,-151.0,0.000248,7]
[385744657,1758001848363,-363.786409,0.000248,7]
[385744658,1758001848374,-388.104289,0.000248,7]
[385744659,1758001848384,-388.104289,0.000248,7]
[385744660,1758001848394,-363.786409,0.000248,7]
[385744661,1758001848404,-151.0,0.000248,7]
[385744662,1758001848415,-151.0,0.000248,7]
[385744663,1758001848425,-151.0,0.000248,7]
[385744664,1758001848435,-287.233985,0.000248,7]
[385744665,1758001848444,-151.0,0.000248,7]
[385744666,1758001848455,-151.0,0.000248,7]
[385744667,1758001848464,-151.0,0.000248,7]
[385744668,1758001848474,-151.0,0.000248,7]
[385744669,1758001848484,-151.0,0.000248,7]
[385744670,1758001848494,-153.842065,0.000248,7]
[385744671,1758001848504,-153.753814,0.000248,7]
[385744672,1758001848514,-151.0,0.000248,7]
[385744673,1758001848523,-151.0,0.000248,7]
[385744674,1758001848533,-151.0,0.000248,7]
[385744675,1758001848542,-151.0,0.000248,7]
[385744676,1758001848553,-151.0,0.000248,7]
[385744677,1758001848563,-151.0,0.000248,7]
[385744678,1758001848573,-151.0,0.000248,7]
[385744679,1758001848586,-158.057658,0.000248,7]
[385744680,1758001848596,-151.0,0.000248,7]
[385744681,1758001848606,-152.48738,0.000248,7]
[385744682,1758001848616,-151.0,0.000248,7]
[385744683,1758001848626,-160.0,0.000248,7]
[385744684,1758001848635,-160.0,0.000248,7]
[385744685,1758001848645,-141453.102964,0.000248,2]
[385744686,1758001848655,-213.1401216,0.000248,7]
[385744687,1758001848665,-151.0,0.000248,7]
[385744688,1758001848674,-151.0,0.000248,7]
[385744689,1758001848684,-151.0,0.000248,7]
[385744690,1758001848694,-167.39,0.00024806,2]
[385744691,1758001848703,-600.0,0.0002485,2]
[385744692,1758001848714,-17681.6378706,0.0002488,2]
[385744693,1758001848723,-151.0,0.00024887,7]
[385744694,1758001848733,-276.224336,0.00024887,7]
[385744695,1758001848743,-17681.6378706,0.0002489,2]
[385744696,1758001848752,-379.47286336,0.00024898,2]
[385744697,1758001848764,-1560.0,0.00024898,2]
[385744698,1758001848774,-500.0,0.00024898,2]
[385744699,1758001848784,-500.0,0.00024898,2]
[385744700,1758001848794,-458.44041175,0.00024898,2]
[385744701,1758001848804,-475.0,0.00024898,2]
[385744702,1758001848814,-151.0,0.000249,7]
[385744703,1758001848824,-190.608258,0.000249,7]
[385744704,1758001848833,-151.0,0.000249,7]
[385744705,1758001848844,-151.0,0.000249,7]
[385744706,1758001848855,-388.104289,0.000249,7]
[385744707,1758001848866,-363.786409,0.000249,7]
[385744708,1758001848875,-388.104289,0.000249,7]
[385744709,1758001848885,-363.786409,0.000249,7]
[385744710,1758001848895,-151.0,0.000249,7]
[385744711,1758001848904,-388.104289,0.000249,7]
[385744712,1758001848914,-363.786409,0.000249,7]
[385744713,1758001848924,-388.104289,0.000249,7]
[385744714,1758001848933,-363.786409,0.000249,7]
[385744715,1758001848943,-153.389898,0.000249,7]
[385744716,1758001848953,-151.0,0.000249,7]
[385744717,1758001848962,-151.0,0.000249,7]
[385744718,1758001848972,-151.0,0.000249,7]
[385744719,1758001848981,-157.376894,0.000249,7]
[385744720,1758001848991,-151.0,0.000249,7]
[385744721,1758001849000,-151.0,0.000249,7]
[385744722,1758001849010,-151.0,0.000249,7]
[385744723,1758001849019,-205.680301,0.000249,7]
[385744724,1758001849029,-151.0,0.000249,7]
[385744725,1758001849039,-10385.0979404,0.000249,2]
[385744726,1758001849049,-12445.10369439,0.000249,2]
[385744727,1758001849058,-2596.27448509,0.00024916,2]
[385744728,1758001849068,-18530.3442476,0.00024926,2]
[385744729,1758001849078,-207.902396,0.00024926,7]
[385744730,1758001849087,-500.0,0.00024932,2]
[385744731,1758001849097,-150.0,0.00024932,2]
[385744732,1758001849106,-175.68346684,0.0002498,2]
[385744733,1758001849116,-150.0,0.0002498,2]
[385744734,1758001849125,-500.0,0.0002498,2]
[385744735,1758001849138,-151.09027267,0.0002498,2]
[385744736,1758001849148,-150.0,0.0002498,2]
[385744737,1758001849157,-150.0,0.0002498,2]
[385744738,1758001849167,-247.97457766,0.0002498,2]
[385744739,1758001849177,-244.5968,0.0002498,7]
[385744740,1758001849187,-17681.6378706,0.0002498,2]
[385744741,1758001849197,-2596.27448509,0.0002498,2]
[385744742,1758001849207,-158.112907,0.0002499,7]
[385744743,1758001849217,-151.0,0.0002499,7]
[385744744,1758001849227,-151.0,0.0002499,7]
[385744745,1758001849237,-151.0,0.0002499,7]
[385744746,1758001849247,-2596.27448509,0.0002499,2]
[385744747,1758001849256,-203.58809029,0.00025,2]
[385744748,1758001849267,-1750.9766134,0.00025,2]
[385744749,1758001849276,-3753.74985041,0.00025,2]
[385744750,1758001849286,-168.0,0.00025,7]
[385744751,1758001849296,-188.11,0.00025008,2]
[385744752,1758001849306,-150.76656225,0.00025023,2]
[385744753,1758001849316,-1500.0,0.00025068,2]
[385744754,1758001849326,-1500.0,0.00025068,2]
[385744755,1758001849336,-200.0,0.00025123,2]
[385744756,1758001849346,-1560.0,0.00025172,2]
[385744757,1758001849356,-358.62118551,0.00025172,2]
[385744758,1758001849366,-447.24798123,0.00025172,2]
[385744759,1758001849376,-475.0,0.00025172,2]
[385744760,1758001849386,-20127.45550751,0.00025191,2]
[385744761,1758001849396,-150.0,0.000252,4]
[385744762,1758001849406,-150.0,0.000252,4]
[385744763,1758001849416,-150.0,0.000252,4]
[385744764,1758001849426,-150.0,0.000252,4]
[385744765,1758001849435,-150.0,0.000252,4]
[385744766,1758001849446,-279.99849697,0.000252,4]
[385744767,1758001849455,-150.0,0.000252,4]
[385744768,1758001849465,-150.0,0.000252,4]
[385744769,1758001849474,-150.0,0.000252,4]
[385744770,1758001849484,-243.74282753,0.000252,4]
[385744771,1758001849494,-150.0,0.000252,4]
[385744772,1758001849504,-151.3799013,0.000252,4]
[385744773,1758001849514,-150.0,0.000252,4]
[385744774,1758001849523,-150.0,0.000252,4]
[385744775,1758001849534,-150.0,0.000252,4]
[385744776,1758001849543,-600.0,0.00025205,2]
[385744777,1758001849554,-150.0,0.00025206,2]
[385744778,1758001849564,-171.23,0.00025212,2]
[385744779,1758001849574,-150.54799691,0.00025214,2]
[385744780,1758001849588,-518.13,0.00025241,2]
[385744781,1758001849598,-2722.57302136,0.00025248,2]
[385744782,1758001854787,156.0,0.000252,29]
[385744787,1758002152850,500.0,0.00013699,2]
[385744790,1758002206441,165.41,0.00012526,2]
[385744791,1758002315010,2000.0,0.00030136,120]
[385744792,1758002322567,2000.0,0.00030136,120]
[385744793,1758002333487,2000.0,0.00030136,120]
[385744794,1758002353561,1772.14,0.00030136,120]
[385744845,1758002892245,1000.0,0.0003,120]
[385744860,1758003031754,-150.0,0.00021107,7]
[385744861,1758003031764,-213.1401216,0.0002379,2]
[385744862,1758003031773,-7500.0,0.00023795,10]
[385744863,1758003031783,-2000.0,0.000238,2]
[385744864,1758003031792,-300.0,0.00024655,2]
[385744865,1758003031801,-300.0,0.00024656,2]
[385744866,1758003031811,-151.22,0.00024658,2]
[385744867,1758003031820,-993.8578584,0.000247,3]
[385744868,1758003031911,-8001.63307429,0.000247,3]
[385744869,1758003031923,-272.75699997,0.000247,3]
[385744870,1758003031949,-4058.45832754,0.000247,3]
[385744871,1758003031965,-460.48983259,0.000247,3]
[385744872,1758003031977,-372.46598481,0.000247,3]
[385744876,1758003032081,-359.9172512,0.000247,3]
[385744877,1758003032092,-710.11,0.000247,3]
[385744878,1758003032104,-2202.4812149,0.000247,3]
[385744879,1758003032115,-2567.8294563,0.000247,3]
[385744880,1758003032125,-160.0,0.000247,3]
[385744881,1758003032134,-213.1401216,0.000247,3]
[385744883,1758003032144,-5124.95693563,0.000248,2]
[385745346,1758003039871,-432.6249621,0.000248,2]
[385745878,1758003045743,-751.04783701,0.000248,2]
[385745917,1758003046334,-1442.24164912,0.000248,2]
[385745918,1758003046346,-8780.55406461,0.000248,2]
[385745919,1758003046361,-3468.57455153,0.000248,2]
[385745920,1758003046370,-200.0,0.00024885,2]
[385745921,1758003046379,-252.6214,0.00024885,2]
[385745922,1758003046389,-3144.76490847,0.000249,2]
[385745967,1758003291323,196.49,0.00025133,120]
[385745977,1758003525236,2690.675546,0.00030136,120]
[385745980,1758003913851,-210129.62718357,0.0002,2]
[385745983,1758003960262,500.0,0.00013699,2]
[385745986,1758004016452,300.0,0.00027397,120]
[385745987,1758004016833,300.0,0.00030137,120]
[385746053,1758004232186,-311.01952031,0.000222,2]
[385746090,1758004237984,-205.98047969,0.000222,2]
[385746092,1758004237993,-92.5535851,0.0002338,2]
[385746097,1758004238202,-414.4464149,0.0002338,2]
[385746098,1758004238213,-511.08580246,0.00023506,2]
[385746099,1758004238222,-500.0,0.00023506,2]
[385746100,1758004238231,-500.0,0.00023507,2]
[385746101,1758004238240,-5000.0,0.00023609,2]
[385746102,1758004238249,-150.0,0.0002363,7]
[385746103,1758004238258,-170.06,0.00023726,2]
[385746105,1758004238268,-213.79608592,0.0002375,2]
[385746106,1758004238277,-250.0,0.0002377,2]
[385746107,1758004238286,-234.65,0.00023783,2]
[385746108,1758004238296,-200.0,0.00023785,2]
[385746109,1758004238306,-163.8,0.00023969,2]
[385746110,1758004238315,-300.0,0.00023998,2]
[385746111,1758004238324,-5419.0459658,0.00024,2]
[385746112,1758004238334,-847.15,0.0002403,2]
[385746113,1758004238343,-803.09,0.00024241,2]
[385746115,1758004238353,-150.0,0.00024288,4]
[385746117,1758004238363,-150.0,0.00024288,4]
[385746119,1758004238372,-150.0,0.00024288,4]
[385746121,1758004238382,-150.0,0.00024288,4]
[385746123,1758004238392,-150.0,0.00024288,4]
[385746125,1758004238401,-150.0,0.00024288,4]
[385746127,1758004238410,-150.0,0.00024288,4]
[385746129,1758004238420,-150.0,0.00024288,4]
[385746131,1758004238429,-150.0,0.00024288,4]
[385746133,1758004238438,-150.0,0.00024288,4]
[385746135,1758004238447,-154.00667655,0.00024288,4]
[385746137,1758004238458,-666.0,0.00024289,3]
[385746139,1758004238468,-150.0,0.00024456,4]
[385746141,1758004238477,-2249.21822377,0.0002449,2]
[385746143,1758004238487,-497.0,0.0002457,2]
[385746145,1758004238496,-150.0,0.00024588,4]
[385746147,1758004238506,-150.0,0.00024625,4]
[385746149,1758004238515,-150.0,0.00024625,4]
[385746151,1758004238525,-198.36555,0.0002465,2]
[385746153,1758004238534,-151.22,0.00024658,2]
[385746155,1758004238544,-16101.96440608,0.00024682,2]
[385746157,1758004238553,-12971.24097332,0.000247,2]
[385746160,1758004238563,-500.0,0.000247,9]
[385746162,1758004238572,-500.0,0.00024773,2]
[385746164,1758004238581,-501.09179752,0.00024773,2]
[385746166,1758004238591,-569.075,0.00024773,8]
[385746168,1758004238600,-194.017,0.00024773,8]
[385746170,1758004238610,-160.0,0.00024782,3]
[385746172,1758004238620,-150.0,0.00024782,2]
[385746173,1758004238629,-33867.2332276,0.00024783,2]
[385746174,1758004238638,-417.1027502,0.00024783,2]
[385746175,1758004238647,-1808.9058401,0.00024783,2]
[385746176,1758004238656,-265.45757494,0.00024783,2]
[385746177,1758004238665,-338.32828178,0.00024784,2]
[385746178,1758004238675,-411.19898863,0.00024785,2]
[385746179,1758004238684,-484.06969547,0.00024786,2]
[385746180,1758004238693,-556.94040232,0.00024786,2]
[385746181,1758004238702,-629.81110916,0.00024787,2]
[385746182,1758004238712,-702.68181601,0.00024788,2]
[385746183,1758004238721,-775.55252285,0.00024789,2]
[385746184,1758004238730,-164.08446072,0.00024789,2]
[385746186,1758004238739,-848.42322968,0.0002479,2]
[385746188,1758004238748,-150.0,0.00024794,4]
[385746190,1758004238757,-160.0,0.000248,3]
[385746192,1758004238767,-515.95536276,0.000248,3]
[385746194,1758004238776,-151.0,0.000248,7]
[385746196,1758004238785,-151.0,0.000248,7]
[385746198,1758004238795,-151.0,0.000248,7]
[385746200,1758004238804,-232.862574,0.000248,7]
[385746202,1758004238813,-218.271845,0.000248,7]
[385746204,1758004238823,-232.862574,0.000248,7]
[385746206,1758004238833,-218.271845,0.000248,7]
[385746208,1758004238842,-232.862574,0.000248,7]
[385746210,1758004238851,-151.0,0.000248,7]
[385746212,1758004238861,-218.271845,0.000248,7]
[385746214,1758004238871,-232.862574,0.000248,7]
[385746216,1758004238881,-218.271845,0.000248,7]
[385746218,1758004238890,-243.293417,0.000248,7]
[385746220,1758004238900,-151.0,0.000248,7]
[385746222,1758004238910,-151.0,0.000248,7]
[385746224,1758004238919,-151.0,0.000248,7]
[385746226,1758004238929,-151.0,0.000248,7]
[385746228,1758004238939,-151.0,0.000248,7]
[385746230,1758004238948,-174.682581,0.000248,7]
[385746232,1758004238958,-151.0,0.000248,7]
[385746234,1758004238968,-151.0,0.000248,7]
[385746236,1758004238976,-151.0,0.000248,7]
[385746238,1758004238985,-153.493477,0.000248,7]
[385746253,1758004239082,-153.340951,0.000248,7]
[385746257,1758004239148,-300.02275283,0.000248,2]
[385746260,1758004239159,-1000.0,0.000248,9]
[385746261,1758004239168,-227.331868,0.000248,7]
[385746263,1758004239178,-117212.514967,0.000248,2]
[385746266,1758004239187,-151.0,0.000248,7]
[385746268,1758004239196,-339.41446,0.000248,7]
[385746270,1758004239205,-167.353005,0.000248,7]
[385746272,1758004239216,-339.41446,0.000248,7]
[385746274,1758004239225,-151.0,0.000248,7]
[385746276,1758004239235,-339.41446,0.000248,7]
[385746278,1758004239244,-151.0,0.000248,7]
[385746280,1758004239256,-151.0,0.000248,7]
[385746282,1758004239266,-339.41446,0.000248,7]
[385746284,1758004239275,-156.913371,0.000248,7]
[385746286,1758004239284,-151.0,0.000248,7]
[385746288,1758004239293,-160.357209,0.000248,7]
[385746290,1758004239303,-151.0,0.000248,7]
[385746292,1758004239312,-151.0,0.000248,7]
[385746294,1758004239321,-154.261415,0.000248,7]
[385746296,1758004239330,-151.0,0.000248,7]